fUSD/lending_fUSD_20240412
["ID","MTS","AMOUNT","RATE_DAILY","PERIOD"]
[322255795,1712915456988,-1423.22902118,0.00036,2]
[322255796,1712915456997,-10000.0,0.00036,7]
[322255797,1712915457007,-150.0,0.00036,120]
[322255798,1712915457017,-640.59,0.00036,2]
[322255799,1712915457026,-1151.75,0.00036,2]
[322255800,1712915457035,-198.66672047,0.0003603,7]
[322255801,1712915457045,-500.0,0.0003604,10]
[322255802,1712915457054,-153.3423266,0.0003609,7]
[322255803,1712915457064,-249.843024,0.00036197,2]
[322255804,1712915457074,-176.72482462,0.00036208,7]
[322255805,1712915457083,-170.0,0.0003623,24]
[322255806,1712915457093,-153.3423266,0.00036421,7]
[322255807,1712915457103,-200.814477,0.00036438,14]
[322255808,1712915457113,-4710.80933974,0.00036462,9]
[322255809,1712915457122,-198.66672047,0.0003652,7]
[322255810,1712915457133,-1027.73773914,0.00036533,2]
[322255811,1712915457143,-2913.26825246,0.00036533,2]
[322255812,1712915457152,-249.843024,0.00036638,2]
[322255813,1712915457162,-151.66253266,0.00036641,7]
[322255814,1712915457172,-640.59,0.000367,2]
[322255815,1712915457181,-1151.75,0.000367,2]
[322255816,1712915457191,-166.81608172,0.00036765,7]
[322255817,1712915457203,-167.32115961,0.00036906,7]
[322255818,1712915457214,-418.16,0.00036908,2]
[322255819,1712915457224,-301.88,0.00036908,2]
[322255820,1712915457233,-300.0,0.00036908,2]
[322255821,1712915457244,-151.12,0.00036908,2]
[322255822,1712915457253,-150.0,0.00036908,2]
[322255823,1712915457263,-162.36,0.00036908,2]
[322255824,1712915457273,-157.72,0.00036908,2]
[322255825,1712915457283,-418.16,0.00036908,2]
[322255826,1712915457293,-150.0,0.00036908,2]
[322255827,1712915457303,-150.0,0.00036908,2]
[322255828,1712915457313,-162.36,0.00036908,2]
[322255829,1712915457325,-150.0,0.00036908,2]
[322255830,1712915457334,-418.16,0.00036908,2]
[322255831,1712915457344,-162.36,0.00036908,2]
[322255832,1712915457354,-150.0,0.00036908,2]
[322255833,1712915457363,-416.24,0.00036908,2]
[322255834,1712915457373,-161.64,0.00036908,2]
[322255835,1712915457383,-536.0,0.00036959,7]
[322255836,1712915457393,-886.0,0.00036959,7]
[322255837,1712915457403,-167.32115961,0.00036966,7]
[322255838,1712915457413,-152.32027786,0.00036991,7]
[322255839,1712915457422,-100000.0,0.00037,27]
[322255840,1712915457432,-10000.0,0.00037,7]
[322255841,1712915457442,-15439.60067396,0.00037,10]
[322255842,1712915457453,-150.0,0.00037,120]
[322255843,1712915457462,-154.564372,0.0003707,7]
[322255844,1712915457472,-249.843024,0.0003708,2]
[322255845,1712915457482,-213.1,0.00037085,2]
[322255846,1712915457491,-1000.0,0.00037099,2]
[322255847,1712915457500,-151.66253266,0.00037122,7]
[322255848,1712915457510,-500.0,0.00037136,10]
[322255849,1712915457521,-1683.27363,0.0003718,2]
[322255850,1712915457532,-200.814477,0.0003726,14]
[322255851,1712915457542,-176.72482462,0.00037398,7]
[322255852,1712915457552,-640.59,0.000374,2]
[322255853,1712915457561,-1151.75,0.000374,2]
[322255854,1712915457571,-176.72482462,0.00037409,7]
[322255855,1712915457580,-2900.0,0.0003741,10]
[322255856,1712915457589,-700.0,0.0003741,10]
[322255857,1712915457599,-150.0,0.000375,120]
[322255858,1712915457608,-198.66672047,0.00037536,7]
[322255859,1712915457619,-153.76,0.00037573,2]
[322255860,1712915457628,-176.72482462,0.00037643,7]
[322255861,1712915457638,-154.02523859,0.00037674,7]
[322255862,1712915457648,-167.32115961,0.00037707,7]
[322255863,1712915457657,-167.32115961,0.00037762,7]
[322255864,1712915457668,-154.82296994,0.0003783,7]
[322255865,1712915457677,-163.21773918,0.00037848,7]
[322255866,1712915457688,-199.0,0.0003788,27]
[322255867,1712915457698,-10759.06635215,0.000379,2]
[322255868,1712915457708,-176.72482462,0.00037915,7]
[322255869,1712915457717,-154.02523859,0.0003793,7]
[322255870,1712915457727,-154.02523859,0.00037942,7]
[322255871,1712915457736,-153.3423266,0.00037944,7]
[322255872,1712915457746,-2900.0,0.00037958,10]
[322255873,1712915457756,-176.77872531,0.0003797,7]
[322255874,1712915457766,-167.32115961,0.00037985,7]
[322255875,1712915457775,-100000.0,0.00038,28]
[322255876,1712915457785,-150.0,0.00038,120]
[322255877,1712915457795,-1040.07,0.00038027,15]
[322255878,1712915457804,-153.3423266,0.00038033,7]
[322255879,1712915457814,-200.814477,0.00038082,14]
[322255880,1712915457826,-574.9,0.00038153,2]
[322255881,1712915457836,-500.0,0.00038232,10]
[322255882,1712915457845,-176.72482462,0.00038272,7]
[322255883,1712915457855,-886.0,0.00038329,7]
[322255884,1712915457865,-155.6,0.00038356,2]
[322255885,1712915457874,-300.0,0.0003842,30]
[322255886,1712915457884,-154.02523859,0.00038436,7]
[322255887,1712915457894,-151.66253266,0.0003845,7]
[322255888,1712915457903,-198.66672047,0.00038461,7]
[322255889,1712915457913,-4710.80933974,0.00038487,12]
[322255890,1712915457923,-151.66253266,0.00038491,7]
[322255891,1712915457933,-700.0,0.00038506,10]
[322255892,1712915457942,-152.82,0.000386,3]
[322255893,1712915457953,-152.82,0.000386,3]
[322255894,1712915457962,-152.82,0.000386,3]
[322255895,1712915457972,-152.82,0.000386,3]
[322255896,1712915457983,-152.82,0.000386,3]
[322255897,1712915457993,-152.82,0.000386,3]
[322255898,1712915458003,-152.82,0.000386,3]
[322255899,1712915458013,-152.82,0.000386,3]
[322255900,1712915458022,-152.82,0.000386,3]
[322255901,1712915458032,-152.82,0.000386,3]
[322255902,1712915458042,-152.82,0.000386,3]
[322255903,1712915458052,-152.82,0.000386,3]
[322255904,1712915458061,-152.82,0.000386,3]
[322255905,1712915458071,-152.82,0.000386,3]
[322255906,1712915458081,-152.82,0.000386,3]
[322255907,1712915458090,-152.82,0.000386,3]
[322255908,1712915458100,-152.82,0.000386,3]
[322255909,1712915458110,-152.82,0.000386,3]
[322255910,1712915458120,-153.88972213,0.00038632,7]
[322255911,1712915458130,-158.58774654,0.00038667,7]
[322255912,1712915458140,-300.0,0.0003867,30]
[322255913,1712915458149,-157.43248176,0.00038697,7]
[322255914,1712915458159,-163.21773928,0.00038735,7]
[322255915,1712915458168,-500.0,0.0003878,10]
[322255916,1712915458178,-700.0,0.0003878,10]
[322255917,1712915458188,-265.29891794,0.00038781,7]
[322255918,1712915458199,-154.80506518,0.00038781,7]
[322255919,1712915458208,-4860.84,0.000388,3]
[322255920,1712915458218,-4860.84,0.000388,3]
[322255921,1712915458228,-4860.84,0.000388,3]
[322255922,1712915458238,-4860.84,0.000388,3]
[322255923,1712915458247,-4860.84,0.000388,3]
[322255924,1712915458257,-4860.84,0.000388,3]
[322255925,1712915458266,-4860.84,0.000388,3]
[322255926,1712915458276,-4860.84,0.000388,3]
[322255927,1712915458286,-4860.84,0.000388,3]
[322255928,1712915458299,-4860.84,0.000388,3]
[322255929,1712915458311,-4860.84,0.000388,3]
[322255930,1712915458327,-4860.84,0.000388,3]
[322255931,1712915458337,-4860.84,0.000388,3]
[322255932,1712915458346,-4860.84,0.000388,3]
[322255933,1712915458356,-4860.84,0.000388,3]
[322255934,1712915458366,-4860.84,0.000388,3]
[322255935,1712915458376,-4860.84,0.000388,3]
[322255936,1712915458388,-4860.84,0.000388,3]
[322255937,1712915458399,-4860.84,0.000388,3]
[322255938,1712915458409,-4860.84,0.000388,3]
[322255939,1712915458419,-154.02523859,0.00038832,7]
[322255940,1712915458428,-1676.97419439,0.000389,15]
[322255941,1712915458439,-167.32115961,0.00038904,7]
[322255942,1712915458451,-413.84442539,0.0003892,30]
[322255943,1712915458461,-447.48,0.00038933,2]
[322255944,1712915458471,-176.72482462,0.00038968,7]
[322255945,1712915458482,-8575.2161097,0.0003897,2]
[322255946,1712915458491,-55074.8802408,0.0003897,2]
[322255947,1712915458502,-743.2503575,0.0003897,2]
[322255948,1712915458511,-973.6930779,0.0003897,2]
[322255949,1712915458522,-351.0803172,0.0003897,2]
[322255950,1712915458531,-150.0,0.00038996,30]
[322255951,1712915458541,-144198.46023708,0.00038997,17]
[322255952,1712915458562,-14350.21250036,0.00038997,17]
[322255953,1712915458575,-1383.28,0.00038997,17]
[322255954,1712915458588,-3812.93949773,0.00038997,17]
[322255955,1712915458601,-6398.67536555,0.00038997,17]
[322255956,1712915458614,-624.75000003,0.00038997,17]
[322255957,1712915458820,-247.994,0.0002831,2]
[322255958,1712915458830,-510.303071,0.00028998,2]
[322255959,1712915458842,-220.36137428,0.00028998,2]
[322255960,1712915458852,-18814.03236564,0.00038997,17]
[322255961,1712915458864,-330718.38909446,0.00038997,17]
[322255962,1712915458875,-1411.67549481,0.00038997,17]
[322255963,1712915458887,-348.92559981,0.00038997,17]
[322255964,1712915458898,-3399.39625553,0.00038997,17]
[322255965,1712915458911,-360.425,0.00038997,17]
[322255966,1712915458922,-575.15954552,0.00038997,17]
[322256003,1712915586301,21556.41330704,0.000189,2]
[322256004,1712915657439,896.99052493,0.00018896,2]
[322256005,1712915663062,549.38818985,0.00012,30]
[322256006,1712915671274,-155.0,0.00020793,2]
[322256007,1712915671295,-312.9044161,0.00020794,2]
[322256008,1712915671316,-551.14005657,0.00020795,2]
[322256009,1712915671337,-155.0,0.00020796,2]
[322256010,1712915671358,-155.0,0.00020796,2]
[322256011,1712915671381,-708.5719525,0.00020796,2]
[322256012,1712915671403,-162.23612957,0.00020797,2]
[322256013,1712915671424,-150.0,0.00020894,2]
[322256014,1712915671448,-155.0,0.00020895,2]
[322256015,1712915671473,-11117.6,0.00020895,2]
[322256016,1712915671494,-1775.0,0.00020896,2]
[322256017,1712915671515,-6488.65009595,0.00020898,2]
[322256018,1712915671536,-158.21062708,0.00020899,2]
[322256019,1712915671560,-799.07727972,0.00020899,2]
[322256020,1712915671580,-269.14422376,0.00020899,2]
[322256021,1712915671601,-162.23612957,0.00020899,2]
[322256022,1712915671624,-799.07727972,0.00020899,2]
[322256023,1712915671644,-799.07727972,0.00020899,2]
[322256024,1712915671665,-799.07727972,0.00020899,2]
[322256025,1712915671687,-799.07727972,0.00020899,2]
[322256026,1712915671708,-269.14422375,0.000209,2]
[322256027,1712915671729,-799.07727972,0.000209,2]
[322256028,1712915671756,-799.07727972,0.000209,2]
[322256029,1712915671783,-799.07727972,0.000209,2]
[322256030,1712915671804,-799.07727972,0.000209,2]
[322256031,1712915671826,-799.07727972,0.000209,2]
[322256032,1712915671847,-175.29854916,0.000209,2]
[322256033,1712915671868,-3310.98252301,0.000209,2]
[322256034,1712915671888,-2392.02321005,0.000209,2]
[322256035,1712915671909,-269.14422375,0.000209,2]
[322256036,1712915671930,-647.78621604,0.000209,2]
[322256037,1712915671951,-427.92036933,0.000209,2]
[322256038,1712915671971,-302.0,0.00020995,2]
[322256039,1712915671991,-269.15452375,0.00020995,2]
[322256040,1712915672010,-450.72564752,0.00020995,2]
[322256041,1712915672031,-204.5729385,0.00020995,2]
[322256042,1712915672051,-1197.51130542,0.00020995,2]
[322256043,1712915672071,-180.72667919,0.00020996,2]
[322256044,1712915672092,-736.72166263,0.00020996,2]
[322256045,1712915672111,-161.79781133,0.00020997,2]
[322256046,1712915672133,-189337.26224317,0.00020997,2]
[322256047,1712915672153,-2350.74431941,0.00020998,2]
[322256048,1712915672173,-807.96572199,0.00020998,2]
[322256049,1712915672194,-1349855.92512206,0.00020998,2]
[322256050,1712915672214,-2554.59791093,0.00020998,2]
[322256051,1712915672234,-178.09535049,0.00020999,2]
[322256052,1712915672254,-444.19174776,0.00020999,2]
[322256053,1712915672275,-448.08145897,0.00020999,2]
[322256054,1712915672295,-291.47382262,0.00021,2]
[322256055,1712915672316,-1668417.08749087,0.00021,2]
[322256056,1712915695023,326.67757,0.0002,2]
[322256109,1712915773024,156.62444705,0.00018898,2]
[322256110,1712915774598,790.36,0.00019828,2]
[322256111,1712915777249,260.38108017,0.00018898,2]
[322256112,1712915779376,373.01119864,0.00018898,2]
[322256113,1712915780738,155.44351897,0.00018898,2]
[322256114,1712915794542,3459.39036,0.00020683,2]
[322256116,1712915837677,23900.0,0.00020426,2]
[322256118,1712915892602,168.56,0.00020098,2]
[322256121,1712916056295,314.25,0.00020255,2]
[322256122,1712916099097,12579.17956838,0.00020665,2]
[322256123,1712916104251,1018.41,0.0001993,2]
[322256124,1712916190656,170.24366785,5e-05,2]
[322256125,1712916240801,360.59772563,5e-05,2]
[322256126,1712916244901,11971.32,0.00019875,2]
[322256127,1712916246488,767.25,0.00017957,2]
[322256128,1712916246717,767.25,0.00020221,2]
[322256129,1712916258649,360.59772563,5e-05,2]
[322256130,1712916279091,341.77855433,0.00020221,2]
[322256131,1712916288223,1018.83,0.00019864,2]
[322256132,1712916313974,536.49,0.00019847,2]
[322256133,1712916317087,2347.17,0.00019839,2]
[322256134,1712916331252,158.19,0.00019988,2]
[322256135,1712916331446,158.19,0.00020118,2]
[322256136,1712916331655,158.19,0.00020248,2]
[322256137,1712916331886,158.19,0.00020379,2]
[322256138,1712916332249,158.19,0.00020509,2]
[322256139,1712916332556,158.19,0.00020639,2]
[322256140,1712916340382,864.81971647,0.00019864,2]
[322256141,1712916341621,155.10933876,0.00019864,2]
[322256142,1712916344294,323.32008066,0.00019864,2]
[322256143,1712916344854,42516.19534711,0.00019864,2]
[322256144,1712916344901,155.0,0.00019864,2]
[322256145,1712916347905,365.12124712,0.00019864,2]
[322256146,1712916348532,1773.93631488,0.00019863,2]
[322256147,1712916350296,1034.82627402,0.00019864,2]
[322256148,1712916350793,210.24561399,0.00019863,2]
[322256149,1712916353436,1039.08603946,0.00019864,2]
[322256150,1712916355188,944.65766503,0.00019864,2]
[322256151,1712916355453,407.76106347,0.00019864,2]
[322256152,1712916356750,19646.07439867,0.00019864,2]
[322256153,1712916357663,200.45993437,0.00019864,2]
[322256154,1712916358385,864.81971647,0.00019864,2]
[322256155,1712916364044,365.12124712,0.00019864,2]
[322256156,1712916364624,185.87047986,0.00019864,2]
[322256157,1712916366206,323.32008066,0.00019864,2]
[322256158,1712916366529,42516.19534711,0.00019864,2]
[322256159,1712916368935,941.37199701,0.00019864,2]
[322256160,1712916369387,1039.08603946,0.00019864,2]
[322256161,1712916371436,216.19910986,0.00019864,2]
[322256162,1712916372233,588.46984018,0.00019864,2]
[322256163,1712916372730,19633.18428069,0.00019864,2]
[322256164,1712916375927,952.38443051,0.00018871,2]
[322256165,1712916377832,365.12124712,0.00019864,2]
[322256166,1712916380214,323.32008066,0.00019864,2]
[322256167,1712916388940,941.37199701,0.00019864,2]
[322256168,1712916389405,1039.08603946,0.00019864,2]
[322256169,1712916392384,864.81971647,0.00019864,2]
[322256170,1712916394719,19639.62933968,0.00019864,2]
[322256171,1712916399037,362.11348898,0.00019864,2]
[322256172,1712916399078,952.38443051,0.00018871,2]
[322256173,1712916402539,42529.83786207,0.00019864,2]
[322256174,1712916405400,1039.08603946,0.00019864,2]
[322256175,1712916408939,941.37199701,0.00019864,2]
[322256176,1712916412225,323.32008066,0.00019864,2]
[322256177,1712916412374,864.81971647,0.00019864,2]
[322256178,1712916413774,952.38443051,0.00018871,2]
[322256179,1712916414720,19639.62933968,0.00019864,2]
[322256180,1712916414789,182.68,0.00019887,2]
[322256181,1712916418528,42529.83786207,0.00019864,2]
[322256182,1712916424072,446.604337,0.00020636,2]
[322256183,1712916424943,941.37199701,0.00019864,2]
[322256184,1712916425471,1039.08603946,0.00019864,2]
[322256185,1712916428220,323.32008066,0.00019864,2]
[322256186,1712916431783,952.38443051,0.00018871,2]
[322256187,1712916432720,3577.88720557,0.00019864,2]
[322256188,1712916434542,42488.91031719,0.00019864,2]
[322256189,1712916436390,865.09031509,0.00019864,2]
[322256190,1712916441401,1039.08603946,0.00019864,2]
[322256191,1712916448218,250.75685437,0.00019864,2]
[322256192,1712916448942,941.34974677,0.00019864,2]
[322256193,1712916449778,971.9452264,0.00018871,2]
[322256196,1712916454548,33689.02282629,0.00019864,2]
[322256197,1712916461400,1039.08603946,0.00019864,2]
[322256198,1712916462381,573.40768893,0.00019864,2]
[322256199,1712916479403,1039.08603946,0.00019864,2]
[322256200,1712916491664,20134.2678214,0.00019864,2]
[322256201,1712916501405,1039.08603946,0.00019864,2]
[322256202,1712916511552,877.50609178,0.00019864,2]
[322256203,1712916523410,1039.08603946,0.00019864,2]
[322256204,1712916541440,1039.08603946,0.00019864,2]
[322256205,1712916561832,201.5,0.000207,2]
[322256206,1712916565417,1039.08603946,0.00019864,2]
[322256207,1712916581421,1039.08603946,0.00019864,2]
[322256208,1712916597313,161.86403933,0.00020632,2]
[322256209,1712916599423,674.85882063,0.00019864,2]
[322256214,1712916622238,157.782804,0.0002,2]
[322256231,1712916631802,-405.02272701,0.00020727,2]
[322256233,1712916631812,-258.80171816,0.00020728,2]
[322256234,1712916631824,-386.06409292,0.00020728,2]
[322256235,1712916631834,-169.53468532,0.00020728,2]
[322256236,1712916631859,-317.67178924,0.00020728,2]
[322256237,1712916631869,-197.7228972,0.00020729,2]
[322256238,1712916631966,-245.83643277,0.00020729,2]
[322256239,1712916631976,-1058.92341767,0.00020729,2]
[322256240,1712916631985,-683.00125252,0.0002073,2]
[322256241,1712916631995,-245.90590584,0.00020733,2]
[322256242,1712916632007,-2160.44641016,0.00020733,2]
[322256243,1712916632019,-9293.88877463,0.00020733,2]
[322256244,1712916632074,-1250.0,0.00020733,2]
[322256245,1712916632088,-12304.64527282,0.00020733,2]
[322256246,1712916632102,-350.0,0.00020733,2]
[322256247,1712916632114,-609.86344662,0.00020733,2]
[322256248,1712916632131,-1731.086632,0.00020733,2]
[322256249,1712916632143,-615.25441392,0.00020733,2]
[322256250,1712916632184,-1008.9263289,0.00020733,2]
[322256251,1712916632195,-2435.33005478,0.00020733,2]
[322256252,1712916632206,-1691.80627849,0.00020733,2]
[322256254,1712916633361,1000.0,0.00019831,2]
[322256268,1712916637649,-1499.61762668,0.00020733,2]
[322256270,1712916637660,-316.0,0.00020735,2]
[322256272,1712916637672,-150.0,0.00020755,2]
[322256274,1712916637682,-663.38900019,0.00020756,2]
[322256306,1712916639002,-4692.53176464,0.00020756,2]
[322256307,1712916639014,-158.19,0.00020769,2]
[322256308,1712916639024,-5355.92076477,0.00020772,2]
[322256309,1712916639035,-5355.92076477,0.00020788,2]
[322256310,1712916639044,-3291.78698038,0.00020798,2]
[322256311,1712916639053,-499.99,0.00020799,2]
[322256312,1712916639063,-23321.502958,0.000208,2]
[322256313,1712916639071,-5355.92076477,0.00020804,2]
[322256314,1712916639082,-23321.502958,0.00020811,2]
[322256315,1712916639092,-3291.78698032,0.00020813,2]
[322256316,1712916639101,-5355.92076477,0.0002082,2]
[322256317,1712916639112,-157.782804,0.00020822,2]
[322256318,1712916639121,-23321.502958,0.00020822,2]
[322256319,1712916639130,-3291.78698032,0.00020827,2]
[322256320,1712916639140,-23321.502958,0.00020833,2]
[322256321,1712916639149,-5355.92076477,0.00020836,2]
[322256322,1712916639158,-3291.78698032,0.00020842,2]
[322256323,1712916639168,-23321.502958,0.00020844,2]
[322256324,1712916639177,-5355.92076477,0.00020852,2]
[322256325,1712916639187,-23321.502958,0.00020856,2]
[322256326,1712916639197,-3291.78698032,0.00020856,2]
[322256327,1712916639206,-159.68,0.00020857,2]
[322256328,1712916639215,-23321.502958,0.00020867,2]
[322256329,1712916639224,-5355.92076477,0.00020868,2]
[322256330,1712916639235,-3291.78698032,0.00020871,2]
[322256331,1712916639244,-23321.502958,0.00020878,2]
[322256332,1712916639255,-5355.92076477,0.00020884,2]
[322256333,1712916639264,-3291.78698032,0.00020885,2]
[322256334,1712916639273,-23321.502958,0.00020889,2]
[322256335,1712916639282,-159.68,0.0002089,2]
[322256336,1712916639292,-312.57722338,0.00020898,2]
[322256337,1712916639301,-1930.5,0.00020899,2]
[322256338,1712916639310,-312.57722336,0.00020899,2]
[322256339,1712916639319,-312.57722336,0.00020899,2]
[322256340,1712916639328,-158.19,0.00020899,2]
[322256341,1712916639337,-23700.0,0.000209,2]
[322256342,1712916639347,-180.00658197,0.000209,2]
[322256343,1712916639356,-49661.1875793,0.000209,2]
[322256344,1712916639366,-156.12850804,0.000209,2]
[322256345,1712916639376,-2022.81688463,0.000209,2]
[322256346,1712916639385,-23321.502958,0.000209,2]
[322256347,1712916639394,-312.57722336,0.000209,2]
[322256348,1712916639404,-7813.46247271,0.000209,2]
[322256349,1712916639413,-5355.92076477,0.000209,2]
[322256350,1712916639423,-10810.83174336,0.000209,2]
[322256351,1712916639432,-1450.5631499,0.000209,2]
[322256354,1712916639655,-279.42612179,0.000209,2]
[322256355,1712916639670,-175.29854916,0.000209,2]
[322256356,1712916639684,-3291.78698032,0.000209,2]
[322256357,1712916639694,-178.76507787,0.000209,2]
[322256358,1712916639705,-458.08195275,0.0002099,2]
[322256359,1712916639714,-458.08195275,0.0002099,2]
[322256360,1712916639724,-458.08195275,0.0002099,2]
[322256361,1712916639734,-159.68,0.0002099,2]
[322256362,1712916639745,-159.68,0.0002099,2]
[322256363,1712916639758,-159.68,0.0002099,2]
[322256364,1712916639767,-159.68,0.0002099,2]
[322256365,1712916639779,-159.68,0.0002099,2]
[322256366,1712916639788,-159.68,0.0002099,2]
[322256367,1712916639797,-159.68,0.0002099,2]
[322256368,1712916639806,-159.68,0.0002099,2]
[322256369,1712916639815,-155.0,0.00020995,2]
[322256370,1712916639824,-155.0,0.00020995,2]
[322256371,1712916639833,-190.17443291,0.00020998,2]
[322256372,1712916639842,-160.02949472,0.00020998,2]
[322256373,1712916639850,-312.31919621,0.00020998,2]
[322256374,1712916639859,-244.12326463,0.00020998,2]
[322256375,1712916639869,-156.35704668,0.00020998,2]
[322256376,1712916639878,-156.5418763,0.00020998,2]
[322256377,1712916639888,-156.8182299,0.00020998,2]
[322256378,1712916639898,-944.20655991,0.00020998,2]
[322256379,1712916639907,-278.21787647,0.00020998,2]
[322256380,1712916639916,-206.27456611,0.00020998,2]
[322256381,1712916639926,-375.83642977,0.00020998,2]
[322256382,1712916639935,-155.57055389,0.00020998,2]
[322256383,1712916639945,-644.56335907,0.00020998,2]
[322256384,1712916639954,-203.96446174,0.00020998,2]
[322256385,1712916639963,-4312.61714156,0.00020998,2]
[322256386,1712916639973,-363.87948677,0.00020998,2]
[322256387,1712916639982,-201.84235747,0.00020998,2]
[322256388,1712916639991,-163.64221507,0.00020998,2]
[322256389,1712916640005,-194.43899637,0.00020998,2]
[322256390,1712916640014,-206.4109594,0.00020998,2]
[322256391,1712916640023,-1596.54483169,0.00020998,2]
[322256392,1712916640033,-269.81732278,0.00020998,2]
[322256393,1712916640043,-3475.14497539,0.00020998,2]
[322256394,1712916640053,-156.88253272,0.00020998,2]
[322256395,1712916640062,-155.93175308,0.00020998,2]
[322256396,1712916640071,-307.95729271,0.00020998,2]
[322256397,1712916640080,-858.36085963,0.00020998,2]
[322256398,1712916640090,-259.46142742,0.00020998,2]
[322256399,1712916640099,-376.29834861,0.00020998,2]
[322256400,1712916640109,-266.41638357,0.00020998,2]
[322256401,1712916640118,-3076.4815945,0.00020998,2]
[322256402,1712916640128,-167.51746447,0.00020998,2]
[322256403,1712916640138,-928.37505763,0.00020998,2]
[322256404,1712916640147,-257.9924181,0.00020998,2]
[322256405,1712916640156,-156.4745453,0.00020998,2]
[322256407,1712916640165,-215.04952346,0.00020998,2]
[322256409,1712916640175,-530.07052976,0.00020998,2]
[322256411,1712916640184,-208.23798869,0.00020998,2]
[322256413,1712916640193,-236.2586598,0.00020998,2]
[322256415,1712916640202,-2175.08703921,0.00020998,2]
[322256417,1712916640211,-1559.44631733,0.00020998,2]
[322256419,1712916640220,-162.08381168,0.00020998,2]
[322256421,1712916640230,-1238.7212054,0.00020998,2]
[322256422,1712916640239,-209.99062344,0.00020998,2]
[322256424,1712916640249,-1633.068682,0.00020998,2]
[322256425,1712916640259,-10227.76107379,0.00020999,2]
[322256426,1712916640268,-500.0,0.00020999,2]
[322256427,1712916640277,-500.0,0.00020999,2]
[322256428,1712916640287,-500.0,0.00020999,2]
[322256429,1712916640296,-500.0,0.00020999,2]
[322256430,1712916640305,-343.14217854,0.00020999,2]
[322256431,1712916640315,-500.0,0.00020999,2]
[322256432,1712916640324,-500.0,0.00020999,2]
[322256433,1712916640335,-500.0,0.00020999,2]
[322256434,1712916640344,-500.0,0.00020999,2]
[322256435,1712916640353,-500.0,0.00020999,2]
[322256436,1712916640362,-500.0,0.00020999,2]
[322256437,1712916640371,-500.0,0.00020999,2]
[322256438,1712916640381,-500.0,0.00020999,2]
[322256439,1712916640390,-630.77277373,0.00020999,2]
[322256440,1712916640399,-500.0,0.00020999,2]
[322256441,1712916640408,-500.0,0.00020999,2]
[322256442,1712916640417,-500.0,0.00020999,2]
[322256443,1712916640426,-500.0,0.00020999,2]
[322256444,1712916640436,-463.90996357,0.00020999,2]
[322256445,1712916640445,-398.9114636,0.00020999,2]
[322256446,1712916640454,-499.99999999,0.00020999,2]
[322256447,1712916640463,-500.0,0.00020999,2]
[322256448,1712916640472,-545.52340427,0.00020999,2]
[322256449,1712916640481,-370.28956452,0.00020999,2]
[322256450,1712916640491,-482.80060139,0.00020999,2]
[322256451,1712916640503,-500.0,0.00020999,2]
[322256452,1712916640512,-233.22215638,0.00020999,2]
[322256453,1712916640521,-299.8922273,0.00020999,2]
[322256454,1712916640531,-500.0,0.00020999,2]
[322256455,1712916640540,-500.0,0.00020999,2]
[322256456,1712916640550,-500.0,0.00020999,2]
[322256457,1712916640559,-500.0,0.00020999,2]
[322256458,1712916640569,-500.0,0.00020999,2]
[322256459,1712916640582,-500.0,0.00020999,2]
[322256460,1712916640591,-500.0,0.00020999,2]
[322256461,1712916640601,-500.0,0.00020999,2]
[322256462,1712916640610,-500.0,0.00020999,2]
[322256463,1712916640620,-500.0,0.00020999,2]
[322256464,1712916640630,-500.0,0.00020999,2]
[322256465,1712916640639,-500.0,0.00020999,2]
[322256466,1712916640649,-500.0,0.00020999,2]
[322256467,1712916640660,-283.27242685,0.00020999,2]
[322256468,1712916640673,-647.53292383,0.00020999,2]